fUST/lending_fUST_20241113
["ID","MTS","AMOUNT","RATE_DAILY","PERIOD"]
[342088030,1731427549826,211.940042,0.00020133,2]
[342088035,1731427610866,238.87437522,0.00020125,2]
[342088036,1731427622746,160.399,0.0002869,120]
[342088068,1731427831962,-1169.27083333,0.00020188,2]
[342088069,1731427831972,-275.56753003,0.00020204,2]
[342088070,1731427831981,-82.38601675,0.00020206,2]
[342088071,1731427831993,-2917.61398325,0.00020206,2]
[342088072,1731427832002,-643.2768318,0.00020208,2]
[342088073,1731427832011,-472.579022,0.00020225,2]
[342088074,1731427832020,-173.859428,0.0002061,2]
[342088075,1731427832029,-300.0,0.00020688,2]
[342088076,1731427832039,-300.0,0.00020688,2]
[342088077,1731427832048,-5046.51965987,0.00020689,2]
[342088078,1731427832059,-1230.45,0.00020689,2]
[342088080,1731427832070,-564.06729105,0.00020689,2]
[342088081,1731427832081,-355.5,0.00020689,2]
[342088082,1731427832092,-364.0,0.00020689,2]
[342088145,1731427838264,-318.41209443,0.00020689,2]
[342088146,1731427838276,-2345.10666288,0.00020689,2]
[342088147,1731427838289,-2048.49376097,0.00020689,2]
[342088148,1731427838298,-162.213846,0.00020768,2]
[342088149,1731427838308,-332.72,0.000208,2]
[342088150,1731427838317,-472.579022,0.0002091,2]
[342088151,1731427838327,-2853.0,0.00021011,2]
[342088152,1731427838336,-472.579022,0.00021595,2]
[342088153,1731427838345,-2599.17447966,0.00021816,2]
[342088154,1731427838355,-862.48069913,0.00021817,2]
[342088155,1731427838365,-2850.0,0.000219,2]
[342088156,1731427838374,-266.07,0.00021907,3]
[342088157,1731427838383,-798.26,0.00021907,3]
[342088159,1731427838392,-500.0,0.00021916,2]
[342088161,1731427838401,-640.85156389,0.00021916,2]
[342088163,1731427838411,-222.48215029,0.00021916,2]
[342088164,1731427838420,-251.76150632,0.00021916,2]
[342088165,1731427838428,-238.84517814,0.00021916,2]
[342088166,1731427838437,-500.0,0.00021916,2]
[342088168,1731427838449,-273.68641433,0.00021916,2]
[342088169,1731427838458,-509.42021204,0.00021916,2]
[342088170,1731427838468,-160.92372923,0.00021916,2]
[342088171,1731427838477,-401.89592045,0.00021917,2]
[342088172,1731427838487,-500.0,0.00021917,2]
[342088173,1731427838496,-401.52459924,0.00021917,2]
[342088174,1731427838506,-272.40672271,0.00021917,2]
[342088175,1731427838515,-297.86108304,0.00021917,2]
[342088176,1731427838524,-500.0,0.00021917,2]
[342088177,1731427838533,-500.0,0.00021917,2]
[342088178,1731427838543,-500.0,0.00021917,2]
[342088179,1731427838552,-500.0,0.00021917,2]
[342088180,1731427838562,-360.92037721,0.00021917,2]
[342088181,1731427838572,-366.57004749,0.00021917,2]
[342088182,1731427838581,-500.0,0.00021917,2]
[342088183,1731427838590,-500.0,0.00021917,2]
[342088184,1731427838599,-500.0,0.00021917,2]
[342088185,1731427838608,-500.0,0.00021917,2]
[342088186,1731427838617,-500.0,0.00021917,2]
[342088187,1731427838626,-272.75383053,0.00021917,2]
[342088188,1731427838635,-500.0,0.00021917,2]
[342088189,1731427838644,-500.0,0.00021917,2]
[342088190,1731427838653,-500.0,0.00021917,2]
[342088191,1731427838663,-500.0,0.00021917,2]
[342088192,1731427838672,-500.0,0.00021917,2]
[342088193,1731427838681,-500.0,0.00021917,2]
[342088194,1731427838690,-500.0,0.00021917,2]
[342088195,1731427838706,-636.96004972,0.00021917,2]
[342088196,1731427838716,-500.0,0.00021917,2]
[342088197,1731427838725,-456.83,0.00021917,2]
[342088198,1731427838734,-681.84,0.00021917,2]
[342088199,1731427838743,-500.0,0.00021917,2]
[342088200,1731427838753,-500.0,0.00021917,2]
[342088201,1731427838762,-500.0,0.00021917,2]
[342088202,1731427838771,-500.0,0.00021917,2]
[342088203,1731427838780,-500.0,0.00021917,2]
[342088204,1731427838790,-500.0,0.00021917,2]
[342088205,1731427838803,-407.51702315,0.00021917,2]
[342088206,1731427838813,-500.0,0.00021917,2]
[342088207,1731427838823,-500.0,0.00021917,2]
[342088208,1731427838832,-558.09832454,0.00021917,2]
[342088209,1731427838841,-500.0,0.00021917,2]
[342088210,1731427838850,-500.0,0.00021917,2]
[342088211,1731427838859,-511.82,0.00021917,2]
[342088212,1731427838868,-500.0,0.00021917,2]
[342088213,1731427838878,-500.0,0.00021917,2]
[342088214,1731427838887,-544.86687167,0.00021917,2]
[342088215,1731427838896,-483.47203062,0.00021917,2]
[342088216,1731427838905,-500.0,0.00021917,2]
[342088217,1731427838915,-500.0,0.00021917,2]
[342088218,1731427838924,-500.0,0.00021917,2]
[342088219,1731427838935,-261.59543122,0.00021917,2]
[342088220,1731427838949,-534.05435722,0.00021917,2]
[342088221,1731427838959,-500.0,0.00021917,2]
[342088222,1731427838969,-500.0,0.00021917,2]
[342088223,1731427838978,-640.39138322,0.00021917,2]
[342088224,1731427838987,-500.0,0.00021917,2]
[342088225,1731427838997,-500.0,0.00021917,2]
[342088226,1731427839006,-500.0,0.00021917,2]
[342088227,1731427839015,-503.18688521,0.00021917,2]
[342088228,1731427839025,-500.0,0.00021917,2]
[342088229,1731427839035,-762.6,0.00021917,2]
[342088230,1731427839047,-500.0,0.00021917,2]
[342088231,1731427839057,-500.0,0.00021917,2]
[342088232,1731427839066,-500.0,0.00021917,2]
[342088233,1731427839075,-509.23507728,0.00021917,2]
[342088234,1731427839085,-500.0,0.00021917,2]
[342088235,1731427839093,-500.0,0.00021917,2]
[342088236,1731427839104,-500.0,0.00021917,2]
[342088237,1731427839115,-330.17331396,0.00021917,2]
[342088238,1731427839125,-500.0,0.00021917,2]
[342088239,1731427839134,-500.0,0.00021917,2]
[342088240,1731427839143,-500.0,0.00021917,2]
[342088241,1731427839154,-500.0,0.00021917,2]
[342088242,1731427839164,-500.0,0.00021917,2]
[342088243,1731427839174,-500.0,0.00021917,2]
[342088244,1731427839185,-503.38310471,0.00021917,2]
[342088245,1731427839198,-500.0,0.00021917,2]
[342088246,1731427839209,-500.0,0.00021917,2]
[342088247,1731427839218,-1029.95,0.00021917,2]
[342088248,1731427839227,-500.0,0.00021917,2]
[342088249,1731427839236,-333.70927077,0.00021917,2]
[342088250,1731427839246,-766.18,0.00021917,2]
[342088251,1731427839256,-500.0,0.00021917,2]
[342088252,1731427839265,-200.0,0.00021917,2]
[342088253,1731427839275,-500.0,0.00021917,2]
[342088254,1731427839284,-647.74730559,0.00021917,2]
[342088255,1731427839298,-500.0,0.00021917,2]
[342088256,1731427839311,-500.0,0.00021917,2]
[342088257,1731427839325,-500.0,0.00021917,2]
[342088258,1731427839339,-500.0,0.00021917,2]
[342088259,1731427839349,-500.0,0.00021917,2]
[342088260,1731427839359,-500.0,0.00021917,2]
[342088262,1731427839368,-500.0,0.00021917,2]
[342088263,1731427839378,-500.0,0.00021917,2]
[342088264,1731427839388,-500.0,0.00021917,2]
[342088265,1731427839398,-500.0,0.00021917,2]
[342088266,1731427839407,-500.0,0.00021917,2]
[342088267,1731427839417,-322.54305302,0.00021917,2]
[342088269,1731427839426,-484.3723534,0.00021917,2]
[342088287,1731427839848,-15.6276466,0.00021917,2]
[342088288,1731427839858,-500.0,0.00021917,2]
[342088289,1731427839867,-500.0,0.00021917,2]
[342088290,1731427839877,-500.0,0.00021917,2]
[342088291,1731427839887,-500.0,0.00021917,2]
[342088292,1731427839896,-500.0,0.00021917,2]
[342088293,1731427839905,-140.42124791,0.00021917,2]
[342088295,1731427839919,-359.57875209,0.00021917,2]
[342088297,1731427839928,-500.0,0.00021917,2]
[342088299,1731427839938,-500.0,0.00021917,2]
[342088301,1731427839951,-500.0,0.00021917,2]
[342088302,1731427839961,-500.0,0.00021917,2]
[342088303,1731427839970,-500.0,0.00021917,2]
[342088304,1731427839979,-500.0,0.00021917,2]
[342088305,1731427839988,-500.0,0.00021917,2]
[342088306,1731427839997,-500.0,0.00021917,2]
[342088307,1731427840006,-673.69,0.00021917,2]
[342088308,1731427840015,-500.0,0.00021917,2]
[342088309,1731427840025,-500.0,0.00021917,2]
[342088310,1731427840034,-500.0,0.00021917,2]
[342088311,1731427840043,-362.34420271,0.00021917,2]
[342088312,1731427840052,-500.0,0.00021917,2]
[342088313,1731427840061,-500.0,0.00021917,2]
[342088314,1731427840070,-500.0,0.00021917,2]
[342088315,1731427840079,-500.0,0.00021917,2]
[342088316,1731427840088,-500.0,0.00021917,2]
[342088317,1731427840097,-1480.53,0.00021917,2]
[342088318,1731427840107,-500.0,0.00021917,2]
[342088319,1731427840119,-500.0,0.00021917,2]
[342088320,1731427840129,-15697.84,0.00021917,2]
[342088321,1731427840138,-500.0,0.00021917,2]
[342088322,1731427840149,-500.0,0.00021917,2]
[342088323,1731427840158,-545.62,0.00021917,2]
[342088324,1731427840167,-534.62774612,0.00021917,2]
[342088325,1731427840175,-500.0,0.00021917,2]
[342088326,1731427840184,-500.0,0.00021917,2]
[342088327,1731427840203,-500.0,0.00021917,2]
[342088328,1731427840212,-875.31,0.00021917,2]
[342088329,1731427840221,-875.31,0.00021917,2]
[342088330,1731427840231,-875.31,0.00021917,2]
[342088331,1731427840240,-875.31,0.00021917,2]
[342088332,1731427840249,-875.31,0.00021917,2]
[342088333,1731427840259,-875.31,0.00021917,2]
[342088334,1731427840268,-500.0,0.00021917,2]
[342088335,1731427840278,-875.31,0.00021917,2]
[342088336,1731427840287,-500.0,0.00021917,2]
[342088337,1731427840298,-500.0,0.00021917,2]
[342088338,1731427840308,-875.31,0.00021917,2]
[342088339,1731427840319,-875.31,0.00021917,2]
[342088340,1731427840328,-875.31,0.00021917,2]
[342088341,1731427840337,-1454.27,0.00021917,2]
[342088342,1731427840347,-493.776888,0.00021917,2]
[342088343,1731427840359,-500.0,0.00021917,2]
[342088344,1731427840368,-500.0,0.00021917,2]
[342088345,1731427840377,-747.43,0.00021917,2]
[342088346,1731427840387,-500.0,0.00021917,2]
[342088347,1731427840396,-500.0,0.00021917,2]
[342088348,1731427840405,-2336.0,0.00021917,2]
[342088349,1731427840415,-556.7,0.00021917,2]
[342088350,1731427840424,-500.0,0.00021917,2]
[342088351,1731427840434,-500.0,0.00021917,2]
[342088352,1731427840444,-500.0,0.00021917,2]
[342088353,1731427840454,-500.0,0.00021917,2]
[342088354,1731427840463,-500.0,0.00021917,2]
[342088355,1731427840472,-500.0,0.00021917,2]
[342088356,1731427840481,-766.54,0.00021917,2]
[342088357,1731427840490,-511.02635095,0.00021917,2]
[342088358,1731427840499,-500.0,0.00021917,2]
[342088359,1731427840508,-500.0,0.00021917,2]
[342088360,1731427840518,-1409.25,0.00021917,2]
[342088361,1731427840527,-500.0,0.00021917,2]
[342088362,1731427840537,-500.0,0.00021917,2]
[342088363,1731427840547,-500.0,0.00021917,2]
[342088364,1731427840556,-4284.5,0.00021917,2]
[342088365,1731427840566,-500.0,0.00021917,2]
[342088366,1731427840575,-500.0,0.00021917,2]
[342088367,1731427840584,-500.0,0.00021917,2]
[342088368,1731427840593,-500.0,0.00021917,2]
[342088369,1731427840602,-500.0,0.00021917,2]
[342088370,1731427840611,-500.0,0.00021917,2]
[342088371,1731427840620,-501.28826301,0.00021917,2]
[342088372,1731427840629,-500.0,0.00021917,2]
[342088373,1731427840639,-619.07,0.00021917,2]
[342088374,1731427840648,-500.0,0.00021917,2]
[342088375,1731427840657,-500.0,0.00021917,2]
[342088376,1731427840666,-2274.26,0.00021917,2]
[342088377,1731427840675,-692.33,0.00021917,2]
[342088378,1731427840684,-1196.9,0.00021917,2]
[342088379,1731427840694,-500.0,0.00021917,2]
[342088380,1731427840705,-500.0,0.00021917,2]
[342088381,1731427840713,-500.0,0.00021917,2]
[342088382,1731427840722,-500.0,0.00021917,2]
[342088383,1731427840806,-500.0,0.00021917,2]
[342088384,1731427840825,-690.14,0.00021917,2]
[342088385,1731427840834,-500.0,0.00021917,2]
[342088386,1731427840843,-500.0,0.00021917,2]
[342088387,1731427840852,-1797.55,0.00021917,2]
[342088388,1731427840862,-334.40731757,0.00021917,2]
[342088389,1731427840871,-500.0,0.00021917,2]
[342088390,1731427840880,-500.0,0.00021917,2]
[342088391,1731427840889,-523.78210441,0.00021917,2]
[342088392,1731427840898,-1068.8,0.00021917,2]
[342088393,1731427840907,-516.72,0.00021917,2]
[342088394,1731427840916,-500.0,0.00021917,2]
[342088395,1731427840925,-1104.99,0.00021917,2]
[342088396,1731427840934,-518.67,0.00021917,2]
[342088397,1731427840943,-1387.9,0.00021917,2]
[342088398,1731427840955,-500.0,0.00021917,2]
[342088399,1731427840964,-500.0,0.00021917,2]
[342088400,1731427840973,-500.0,0.00021917,2]
[342088401,1731427840983,-503.65221182,0.00021917,2]
[342088402,1731427840991,-2379.89,0.00021917,2]
[342088403,1731427841000,-500.0,0.00021917,2]
[342088404,1731427841010,-3133.91,0.00021917,2]
[342088405,1731427841020,-500.0,0.00021917,2]
[342088406,1731427841029,-500.0,0.00021917,2]
[342088407,1731427841039,-564.72,0.00021917,2]
[342088408,1731427841048,-500.0,0.00021917,2]
[342088409,1731427841057,-500.0,0.00021917,2]
[342088410,1731427841067,-667.81,0.00021917,2]
[342088411,1731427841076,-500.0,0.00021917,2]
[342088412,1731427841085,-500.0,0.00021917,2]
[342088413,1731427841095,-500.0,0.00021917,2]
[342088414,1731427841106,-368.2296267,0.00021917,2]
[342088415,1731427841117,-1080.98,0.00021917,2]
[342088416,1731427841126,-500.0,0.00021917,2]
[342088417,1731427841136,-500.0,0.00021917,2]
[342088418,1731427841145,-500.0,0.00021917,2]
[342088419,1731427841154,-678.26,0.00021917,2]
[342088420,1731427841164,-500.0,0.00021917,2]
[342088421,1731427841173,-500.0,0.00021917,2]
[342088422,1731427841184,-500.0,0.00021917,2]
[342088423,1731427841192,-500.0,0.00021917,2]
[342088424,1731427841206,-500.0,0.00021917,2]
[342088425,1731427841215,-500.0,0.00021917,2]
[342088426,1731427841224,-6059.29,0.00021917,2]
[342088427,1731427841235,-500.0,0.00021917,2]
[342088428,1731427841244,-500.0,0.00021917,2]
[342088429,1731427841254,-280.92,0.00021917,2]
[342088430,1731427841263,-500.0,0.00021917,2]
[342088431,1731427841273,-1217.89,0.00021917,2]
[342088432,1731427841282,-500.0,0.00021917,2]
[342088433,1731427841291,-500.0,0.00021917,2]
[342088434,1731427841301,-5669.83,0.00021917,2]
[342088435,1731427841310,-1538.91,0.00021917,2]
[342088436,1731427841320,-500.0,0.00021917,2]
[342088437,1731427841329,-500.0,0.00021917,2]
[342088438,1731427841338,-3380.5,0.00021917,2]
[342088439,1731427841348,-500.38,0.00021917,2]
[342088440,1731427841357,-500.0,0.00021917,2]
[342088441,1731427841366,-500.0,0.00021917,2]
[342088442,1731427841375,-573.06613602,0.00021917,2]
[342088443,1731427841385,-216.21679917,0.00021917,2]
[342088444,1731427841394,-500.0,0.00021917,2]
[342088445,1731427841403,-500.0,0.00021917,2]
[342088446,1731427841412,-500.0,0.00021917,2]
[342088447,1731427841422,-500.0,0.00021917,2]
[342088448,1731427841431,-500.0,0.00021917,2]
[342088449,1731427841440,-500.0,0.00021917,2]
[342088450,1731427841451,-500.0,0.00021917,2]
[342088451,1731427841462,-753.2,0.00021917,2]
[342088452,1731427841471,-167.925452,0.00021918,2]
[342088453,1731427841480,-500.0,0.00021973,2]
[342088454,1731427841489,-153.93431464,0.00021973,2]
[342088455,1731427841498,-500.0,0.00021973,2]
[342088456,1731427841507,-500.0,0.00021973,2]
[342088457,1731427841516,-509.59,0.00022,7]
[342088458,1731427841525,-167.0,0.00022,2]
[342088459,1731427841535,-862.48069911,0.00022031,2]
[342088460,1731427841544,-949.07504144,0.0002209,2]
[342088461,1731427841554,-500.0,0.00022173,2]
[342088462,1731427841563,-500.0,0.00022173,2]
[342088463,1731427841572,-500.0,0.00022173,2]
[342088464,1731427841581,-406.08248336,0.00022173,2]
[342088465,1731427841590,-500.0,0.00022173,2]
[342088466,1731427841599,-500.0,0.00022173,2]
[342088467,1731427841608,-500.0,0.00022173,2]
[342088468,1731427841617,-500.0,0.00022173,2]
[342088469,1731427841627,-500.0,0.00022173,2]
[342088470,1731427841636,-500.0,0.00022173,2]
[342088471,1731427841645,-500.0,0.00022173,2]
[342088472,1731427841655,-875.31,0.0002219,2]
[342088473,1731427841663,-875.31,0.0002219,2]
[342088474,1731427841673,-875.31,0.0002219,2]
[342088475,1731427841682,-875.31,0.0002219,2]
[342088476,1731427841691,-875.31,0.0002219,2]
[342088477,1731427841703,-875.31,0.0002219,2]
[342088478,1731427841712,-875.31,0.0002219,2]
[342088479,1731427841721,-500.0,0.00022191,2]
[342088480,1731427841731,-500.0,0.00022191,2]
[342088481,1731427841741,-500.0,0.00022191,2]
[342088482,1731427841750,-585.42335733,0.00022191,2]
[342088483,1731427841760,-500.0,0.00022191,2]
[342088484,1731427841769,-500.0,0.00022191,2]
[342088485,1731427841778,-500.0,0.00022191,2]
[342088486,1731427841787,-500.0,0.00022191,2]
[342088487,1731427841796,-500.0,0.00022191,2]
[342088488,1731427841806,-500.0,0.00022191,2]
[342088489,1731427841815,-500.0,0.00022191,2]
[342088490,1731427841824,-500.0,0.00022191,2]
[342088491,1731427841833,-681.84,0.00022191,2]
[342088492,1731427841842,-500.0,0.00022191,2]
[342088493,1731427841851,-500.0,0.00022191,2]
[342088494,1731427841860,-500.0,0.00022191,2]
[342088495,1731427841870,-270.88158284,0.00022191,2]
[342088496,1731427841880,-500.0,0.00022191,2]
[342088497,1731427841890,-500.0,0.00022191,2]
[342088498,1731427841899,-511.82,0.00022191,2]
[342088499,1731427841908,-500.0,0.00022191,2]
[342088500,1731427841917,-500.0,0.00022191,2]
[342088501,1731427841926,-500.0,0.00022191,2]
[342088502,1731427841935,-500.0,0.00022191,2]
[342088503,1731427841947,-500.0,0.00022191,2]
[342088504,1731427841956,-500.0,0.00022191,2]
[342088505,1731427841965,-500.0,0.00022191,2]
[342088506,1731427841974,-500.0,0.00022191,2]
[342088507,1731427841983,-500.0,0.00022191,2]
[342088508,1731427841992,-762.6,0.00022191,2]
[342088509,1731427842001,-500.0,0.00022191,2]
[342088510,1731427842011,-500.0,0.00022191,2]
[342088511,1731427842020,-500.0,0.00022191,2]
[342088512,1731427842029,-500.0,0.00022191,2]
[342088513,1731427842038,-500.0,0.00022191,2]
[342088514,1731427842048,-500.0,0.00022191,2]
[342088515,1731427842057,-500.0,0.00022191,2]
[342088516,1731427842066,-500.0,0.00022191,2]
[342088517,1731427842075,-500.0,0.00022191,2]
[342088518,1731427842084,-500.0,0.00022191,2]
[342088519,1731427842093,-500.0,0.00022191,2]
[342088520,1731427842103,-500.0,0.00022191,2]
[342088521,1731427842112,-1029.95,0.00022191,2]
[342088522,1731427842124,-500.0,0.00022191,2]
[342088523,1731427842133,-766.18,0.00022191,2]
[342088524,1731427842143,-500.0,0.00022191,2]
[342088525,1731427842152,-200.0,0.00022191,2]
[342088526,1731427842163,-500.0,0.00022191,2]
[342088527,1731427842172,-500.0,0.00022191,2]
[342088528,1731427842182,-500.0,0.00022191,2]
[342088529,1731427842193,-500.0,0.00022191,2]
[342088530,1731427842206,-500.0,0.00022191,2]
[342088531,1731427842215,-500.0,0.00022191,2]
[342088532,1731427842224,-500.0,0.00022191,2]
[342088533,1731427842233,-500.0,0.00022191,2]
[342088534,1731427842242,-500.0,0.00022191,2]
[342088535,1731427842251,-500.0,0.00022191,2]
[342088536,1731427842261,-500.0,0.00022191,2]
[342088537,1731427842269,-500.0,0.00022191,2]
[342088538,1731427842279,-500.0,0.00022191,2]
[342088539,1731427842288,-500.0,0.00022191,2]
[342088540,1731427842298,-500.0,0.00022191,2]
[342088541,1731427842308,-500.0,0.00022191,2]
[342088542,1731427842317,-500.0,0.00022191,2]
[342088543,1731427842327,-500.0,0.00022191,2]
[342088544,1731427842335,-500.0,0.00022191,2]
[342088545,1731427842344,-500.0,0.00022191,2]
[342088546,1731427842354,-500.0,0.00022191,2]
[342088547,1731427842363,-500.0,0.00022191,2]
[342088548,1731427842372,-500.0,0.00022191,2]
[342088550,1731427842382,-500.0,0.00022191,2]
[342088551,1731427842391,-673.69,0.00022191,2]
[342088553,1731427842400,-500.0,0.00022191,2]
[342088554,1731427842409,-500.0,0.00022191,2]
[342088555,1731427842418,-500.0,0.00022191,2]
[342088556,1731427842427,-500.0,0.00022191,2]
[342088558,1731427842436,-625.06620912,0.00022191,2]
[342088559,1731427842447,-500.0,0.00022191,2]
[342088560,1731427842456,-500.0,0.00022191,2]
[342088561,1731427842465,-500.0,0.00022191,2]
[342088562,1731427842475,-1480.53,0.00022191,2]
[342088563,1731427842484,-479.87276738,0.00022191,2]
[342088565,1731427842493,-500.0,0.00022191,2]
[342088567,1731427842502,-15697.84,0.00022191,2]
[342088569,1731427842511,-500.0,0.00022191,2]
[342088570,1731427842520,-500.0,0.00022191,2]
[342088571,1731427842530,-545.62,0.00022191,2]
[342088572,1731427842539,-500.0,0.00022191,2]
[342088574,1731427842548,-500.0,0.00022191,2]
[342088576,1731427842558,-500.0,0.00022191,2]
[342088577,1731427842566,-500.0,0.00022191,2]
[342088578,1731427842576,-500.0,0.00022191,2]
[342088579,1731427842585,-1454.27,0.00022191,2]
[342088580,1731427842593,-747.43,0.00022191,2]
[342088581,1731427842602,-500.0,0.00022191,2]
[342088582,1731427842612,-2336.0,0.00022191,2]
[342088583,1731427842621,-556.7,0.00022191,2]
[342088584,1731427842630,-500.0,0.00022191,2]
[342088585,1731427842639,-500.0,0.00022191,2]
[342088586,1731427842649,-500.0,0.00022191,2]
[342088588,1731427842658,-500.0,0.00022191,2]
[342088589,1731427842667,-766.54,0.00022191,2]
[342088590,1731427842676,-500.0,0.00022191,2]
[342088591,1731427842685,-500.0,0.00022191,2]
[342088592,1731427842697,-1409.25,0.00022191,2]
[342088594,1731427842706,-500.0,0.00022191,2]
[342088595,1731427842715,-500.0,0.00022191,2]
[342088596,1731427842723,-500.0,0.00022191,2]
[342088597,1731427842733,-4284.5,0.00022191,2]
[342088598,1731427842741,-500.0,0.00022191,2]
[342088599,1731427842750,-500.0,0.00022191,2]
[342088600,1731427842760,-500.0,0.00022191,2]
[342088601,1731427842846,-500.0,0.00022191,2]
[342088602,1731427842856,-500.0,0.00022191,2]
[342088603,1731427842865,-500.0,0.00022191,2]
[342088604,1731427842874,-500.0,0.00022191,2]
[342088605,1731427842883,-619.07,0.00022191,2]
[342088606,1731427842892,-2274.26,0.00022191,2]
[342088607,1731427842901,-500.0,0.00022191,2]
[342088608,1731427842911,-692.33,0.00022191,2]
[342088609,1731427842921,-1196.9,0.00022191,2]
[342088610,1731427842930,-500.0,0.00022191,2]
[342088611,1731427842939,-500.0,0.00022191,2]
[342088612,1731427842951,-536.81013622,0.00022191,2]
[342088613,1731427842960,-500.0,0.00022191,2]
[342088614,1731427842969,-690.14,0.00022191,2]
[342088616,1731427842979,-500.0,0.00022191,2]
[342088618,1731427842988,-1797.55,0.00022191,2]
[342088619,1731427842998,-500.0,0.00022191,2]
[342088620,1731427843008,-500.0,0.00022191,2]
[342088621,1731427843017,-1068.8,0.00022191,2]
[342088622,1731427843027,-516.72,0.00022191,2]
[342088623,1731427843036,-500.0,0.00022191,2]
[342088624,1731427843046,-1104.99,0.00022191,2]
[342088625,1731427843055,-518.67,0.00022191,2]
[342088626,1731427843064,-1387.9,0.00022191,2]
[342088627,1731427843074,-500.0,0.00022191,2]
[342088628,1731427843083,-500.0,0.00022191,2]
[342088629,1731427843092,-2379.89,0.00022191,2]
[342088630,1731427843102,-500.0,0.00022191,2]
[342088631,1731427843111,-3133.91,0.00022191,2]
[342088632,1731427843124,-500.0,0.00022191,2]
[342088633,1731427843134,-500.0,0.00022191,2]
[342088634,1731427843143,-564.72,0.00022191,2]
[342088635,1731427843153,-618.27758101,0.00022191,2]
[342088636,1731427843163,-500.0,0.00022191,2]
[342088637,1731427843172,-181.1636921,0.00022191,2]
[342088638,1731427843190,-486.6463079,0.00022191,2]
[342088639,1731427843203,-500.0,0.00022191,2]
[342088640,1731427843213,-500.0,0.00022191,2]
[342088641,1731427843222,-500.0,0.00022191,2]
[342088642,1731427843231,-1080.98,0.00022191,2]
[342088643,1731427843241,-500.0,0.00022191,2]
[342088644,1731427843250,-500.0,0.00022191,2]
[342088645,1731427843259,-500.0,0.00022191,2]
[342088646,1731427843268,-678.26,0.00022191,2]
[342088647,1731427843278,-500.0,0.00022191,2]
[342088648,1731427843287,-500.0,0.00022191,2]
[342088649,1731427843297,-500.0,0.00022191,2]
[342088650,1731427843306,-500.0,0.00022191,2]
[342088651,1731427843316,-500.0,0.00022191,2]
[342088652,1731427843325,-6059.29,0.00022191,2]
[342088653,1731427843334,-500.0,0.00022191,2]
[342088654,1731427843343,-1217.89,0.00022191,2]
[342088655,1731427843352,-500.0,0.00022191,2]
[342088656,1731427843361,-500.0,0.00022191,2]
[342088657,1731427843371,-5669.83,0.00022191,2]
[342088658,1731427843380,-1538.91,0.00022191,2]
[342088659,1731427843390,-500.0,0.00022191,2]
[342088660,1731427843399,-500.0,0.00022191,2]
[342088661,1731427843409,-3380.5,0.00022191,2]
[342088662,1731427843418,-500.38,0.00022191,2]
[342088663,1731427843427,-500.0,0.00022191,2]
[342088664,1731427843437,-500.0,0.00022191,2]
[342088665,1731427843449,-500.0,0.00022191,2]
[342088666,1731427843459,-500.0,0.00022191,2]